fUSD/lending_fUSD_20250612
["ID","MTS","AMOUNT","RATE_DAILY","PERIOD"]
[365474640,1749695447707,-151.0,0.00019178,2]
[365474641,1749695447717,-151.0,0.00019178,2]
[365474642,1749695447726,-151.0,0.00019178,2]
[365474643,1749695447735,-151.0,0.00019178,2]
[365474644,1749695447744,-202.88253377,0.00019178,2]
[365474645,1749695447753,-490.0,0.00019178,2]
[365474646,1749695447762,-490.0,0.00019178,2]
[365474647,1749695447772,-3182.887978,0.00019178,2]
[365474648,1749695447781,-3182.887978,0.00019178,2]
[365474649,1749695447790,-3182.887978,0.00019178,2]
[365474650,1749695447799,-3182.887978,0.00019178,2]
[365474651,1749695447808,-490.0,0.00019178,2]
[365474652,1749695447817,-490.0,0.00019178,2]
[365474653,1749695447826,-490.0,0.00019178,2]
[365474654,1749695447835,-490.0,0.00019178,2]
[365474655,1749695447844,-3182.887978,0.00019178,2]
[365474656,1749695447853,-3182.887978,0.00019178,2]
[365474657,1749695447863,-151.0,0.00019178,2]
[365474658,1749695447872,-151.0,0.00019178,2]
[365474659,1749695447884,-3182.887978,0.00019178,2]
[365474660,1749695447900,-151.0,0.00019178,2]
[365474661,1749695447912,-3182.887978,0.00019178,2]
[365474662,1749695447922,-495.83238657,0.00019178,2]
[365474663,1749695447932,-151.0,0.00019178,2]
[365474664,1749695447942,-490.0,0.00019178,2]
[365474665,1749695447951,-160.200038,0.00019178,2]
[365474666,1749695447961,-490.0,0.00019178,2]
[365474667,1749695447971,-497.58360444,0.00019178,2]
[365474668,1749695447980,-490.0,0.00019178,2]
[365474669,1749695447991,-490.0,0.00019178,2]
[365474670,1749695448002,-497.68129645,0.00019178,2]
[365474671,1749695448012,-482.59584318,0.00019178,2]
[365474672,1749695448022,-475.97700058,0.00019178,2]
[365474673,1749695448033,-635.63,0.00019178,2]
[365474674,1749695448054,-494.34878613,0.00019178,2]
[365474675,1749695448068,-472.24990402,0.00019178,2]
[365474676,1749695448081,-576.5520002,0.00019178,2]
[365474677,1749695448091,-492.20219343,0.00019178,2]
[365474678,1749695448102,-501.47918784,0.00019178,2]
[365474679,1749695448112,-491.98186088,0.00019178,2]
[365474680,1749695448122,-490.0,0.00019178,2]
[365474681,1749695448132,-486.13928854,0.00019178,2]
[365474682,1749695448142,-470.52410764,0.00019178,2]
[365474683,1749695448152,-501.35362984,0.00019178,2]
[365474684,1749695448162,-524.06,0.00019178,2]
[365474685,1749695448173,-508.97277887,0.00019178,2]
[365474686,1749695448184,-430.78199769,0.00019178,2]
[365474687,1749695448194,-490.0,0.00019178,2]
[365474688,1749695448204,-471.8873653,0.00019178,2]
[365474689,1749695448215,-520.99594407,0.00019178,2]
[365474690,1749695448225,-167.219719,0.00019178,2]
[365474691,1749695448234,-474.43948048,0.00019178,2]
[365474692,1749695448244,-151.0,0.00019178,2]
[365474693,1749695448254,-552.63575201,0.00019178,2]
[365474694,1749695448265,-151.0,0.00019178,2]
[365474695,1749695448275,-490.0,0.00019178,2]
[365474696,1749695448285,-490.0,0.00019178,2]
[365474697,1749695448295,-151.0,0.00019178,2]
[365474698,1749695448307,-151.0,0.00019178,2]
[365474699,1749695448317,-490.0,0.00019178,2]
[365474700,1749695448328,-989.15,0.00019178,2]
[365474701,1749695448339,-490.0,0.00019178,2]
[365474702,1749695448349,-488.77989778,0.00019178,2]
[365474703,1749695448365,-153.428557,0.00019178,2]
[365474704,1749695448376,-431.2198185,0.00019178,2]
[365474705,1749695448387,-490.0,0.00019178,2]
[365474706,1749695448398,-490.0,0.00019178,2]
[365474707,1749695448409,-516.1981472,0.00019178,2]
[365474708,1749695448419,-490.0,0.00019178,2]
[365474709,1749695448430,-479.12474705,0.00019178,2]
[365474710,1749695448441,-503.2621597,0.00019178,2]
[365474711,1749695448451,-436.89270189,0.00019178,2]
[365474712,1749695448461,-478.1134169,0.00019178,2]
[365474713,1749695448472,-477.14707793,0.00019178,2]
[365474714,1749695448482,-506.72367795,0.00019178,2]
[365474715,1749695448492,-430.33187598,0.00019178,2]
[365474716,1749695448503,-369.54465678,0.00019178,2]
[365474717,1749695448513,-489.79098252,0.00019178,2]
[365474718,1749695448523,-508.66579801,0.00019178,2]
[365474719,1749695448533,-552.80677806,0.00019178,2]
[365474720,1749695448544,-500.0,0.00019178,2]
[365474721,1749695448555,-477.6898061,0.00019178,2]
[365474722,1749695448566,-449.98219128,0.00019178,2]
[365474723,1749695448576,-495.13166123,0.00019178,2]
[365474724,1749695448587,-520.865007,0.00019178,2]
[365474725,1749695448597,-736.45,0.00019178,2]
[365474726,1749695448610,-481.74527272,0.00019178,2]
[365474727,1749695448621,-518.44310652,0.00019178,2]
[365474728,1749695448633,-376.94877356,0.00019178,2]
[365474729,1749695448643,-813.08,0.00019178,2]
[365474730,1749695448653,-420.0,0.00019178,2]
[365474731,1749695448664,-502.76493621,0.00019178,2]
[365474732,1749695448674,-471.63046121,0.00019178,2]
[365474733,1749695448684,-429.61342594,0.00019178,2]
[365474734,1749695448694,-491.95233747,0.00019178,2]
[365474735,1749695448705,-512.67443662,0.00019178,2]
[365474736,1749695448715,-522.08409866,0.00019178,2]
[365474737,1749695448724,-490.0,0.00019178,2]
[365474738,1749695448734,-490.0,0.00019178,2]
[365474739,1749695448745,-500.02170081,0.00019178,2]
[365474740,1749695448754,-311.55182799,0.00019178,2]
[365474741,1749695448766,-512.50443179,0.00019178,2]
[365474742,1749695448776,-490.0,0.00019178,2]
[365474743,1749695448787,-481.922063,0.00019178,2]
[365474744,1749695448797,-490.0,0.00019178,2]
[365474745,1749695448819,-505.02540903,0.00019178,2]
[365474746,1749695448832,-463.19444125,0.00019178,2]
[365474747,1749695448843,-827.49,0.00019178,2]
[365474748,1749695448853,-153.403735,0.00019178,2]
[365474749,1749695448864,-511.19,0.00019178,2]
[365474750,1749695448876,-514.95220198,0.00019178,2]
[365474751,1749695448887,-490.0,0.00019178,2]
[365474752,1749695448898,-500.12974127,0.00019178,2]
[365474753,1749695448909,-490.0,0.00019178,2]
[365474754,1749695448919,-490.0,0.00019178,2]
[365474755,1749695448930,-490.0,0.00019178,2]
[365474756,1749695448940,-467.12641225,0.00019178,2]
[365474757,1749695448951,-599.33,0.00019178,2]
[365474758,1749695448962,-500.27632955,0.00019178,2]
[365474759,1749695448972,-506.27097089,0.00019178,2]
[365474760,1749695448983,-515.40823384,0.00019178,2]
[365474761,1749695448997,-513.8569789,0.00019178,2]
[365474762,1749695449007,-649.28,0.00019178,2]
[365474763,1749695449019,-151.0,0.00019178,2]
[365474764,1749695449030,-151.0,0.00019178,2]
[365474765,1749695449041,-162.503639,0.00019178,2]
[365474766,1749695449051,-490.0,0.00019178,2]
[365474767,1749695449063,-482.25694257,0.00019178,2]
[365474768,1749695449075,-490.0,0.00019178,2]
[365474769,1749695449086,-490.0,0.00019178,2]
[365474770,1749695449097,-490.0,0.00019178,2]
[365474771,1749695449107,-490.0,0.00019178,2]
[365474772,1749695449118,-490.0,0.00019178,2]
[365474773,1749695449129,-501.07229793,0.00019178,2]
[365474774,1749695449141,-1255.0,0.00019178,2]
[365474775,1749695449152,-490.0,0.00019178,2]
[365474776,1749695449163,-490.0,0.00019178,2]
[365474777,1749695449174,-518.19479234,0.00019178,2]
[365474778,1749695449185,-1007.8,0.00019178,2]
[365474779,1749695449196,-505.52544787,0.00019178,2]
[365474780,1749695449207,-530.06132906,0.00019178,2]
[365474781,1749695449219,-490.0,0.00019178,2]
[365474782,1749695449230,-400.0,0.00019178,2]
[365474783,1749695449241,-485.84119835,0.00019178,2]
[365474784,1749695449252,-490.0,0.00019178,2]
[365474785,1749695449265,-500.44780493,0.00019178,2]
[365474786,1749695449276,-490.0,0.00019178,2]
[365474787,1749695449287,-1433.14,0.00019178,2]
[365474788,1749695449298,-541.10009259,0.00019178,2]
[365474789,1749695449310,-479.74073455,0.00019178,2]
[365474790,1749695449323,-455.46348502,0.00019178,2]
[365474791,1749695449334,-431.03738419,0.00019178,2]
[365474792,1749695449346,-490.0,0.00019178,2]
[365474793,1749695449358,-792.8,0.00019178,2]
[365474794,1749695449369,-507.96422556,0.00019178,2]
[365474795,1749695449380,-487.52870874,0.00019178,2]
[365474796,1749695449390,-1323.19,0.00019178,2]
[365474797,1749695449401,-500.0,0.00019178,2]
[365474798,1749695449412,-490.0,0.00019178,2]
[365474799,1749695449423,-490.0,0.00019178,2]
[365474800,1749695449434,-502.43390485,0.00019178,2]
[365474801,1749695449445,-558.00429589,0.00019178,2]
[365474802,1749695449456,-500.0,0.00019178,2]
[365474803,1749695449467,-492.90430335,0.00019178,2]
[365474804,1749695449478,-151.94070941,0.00019178,2]
[365474805,1749695449489,-490.0,0.00019178,2]
[365474806,1749695449501,-490.0,0.00019178,2]
[365474807,1749695449511,-500.0,0.00019178,2]
[365474808,1749695449522,-1205.49,0.00019178,2]
[365474809,1749695449533,-490.0,0.00019178,2]
[365474810,1749695449544,-490.0,0.00019178,2]
[365474811,1749695449556,-659.1,0.00019178,2]
[365474812,1749695449567,-152.73834023,0.00019178,2]
[365474813,1749695449578,-490.0,0.00019178,2]
[365474814,1749695449589,-490.0,0.00019178,2]
[365474815,1749695449600,-490.0,0.00019178,2]
[365474816,1749695449611,-151.566366,0.00019178,2]
[365474817,1749695449621,-511.21654455,0.00019178,2]
[365474818,1749695449635,-510.83041718,0.00019178,2]
[365474819,1749695449645,-490.0,0.00019178,2]
[365474820,1749695449656,-490.0,0.00019178,2]
[365474821,1749695449666,-500.5196206,0.00019178,2]
[365474822,1749695449678,-491.87247156,0.00019178,2]
[365474823,1749695449688,-516.99212046,0.00019178,2]
[365474824,1749695449699,-236.102719,0.00019178,2]
[365474825,1749695449709,-236.102719,0.00019178,2]
[365474826,1749695449720,-1960.65,0.00019178,2]
[365474827,1749695449730,-236.102719,0.00019178,2]
[365474828,1749695449741,-500.0,0.00019178,2]
[365474829,1749695449752,-236.102719,0.00019178,2]
[365474830,1749695449763,-418.59442165,0.00019178,2]
[365474831,1749695449773,-492.12813235,0.00019178,2]
[365474832,1749695449784,-236.102719,0.00019178,2]
[365474833,1749695449794,-495.21631525,0.00019178,2]
[365474834,1749695449805,-1208.03,0.00019178,2]
[365474835,1749695449815,-236.102719,0.00019178,2]
[365474836,1749695449826,-236.102719,0.00019178,2]
[365474837,1749695449836,-500.22679014,0.00019178,2]
[365474838,1749695449846,-560.332971,0.00019178,2]
[365474839,1749695449856,-236.102719,0.00019178,2]
[365474840,1749695449867,-518.85929127,0.00019178,2]
[365474841,1749695449878,-505.86681893,0.00019178,2]
[365474842,1749695449889,-236.102719,0.00019178,2]
[365474843,1749695449900,-560.332971,0.00019178,2]
[365474844,1749695449911,-236.102719,0.00019178,2]
[365474845,1749695449922,-560.332971,0.00019178,2]
[365474846,1749695449933,-560.332971,0.00019178,2]
[365474847,1749695449943,-1035.78,0.00019178,2]
[365474848,1749695449954,-560.332971,0.00019178,2]
[365474849,1749695449964,-509.11562541,0.00019178,2]
[365474850,1749695449975,-925.52,0.00019178,2]
[365474851,1749695449986,-490.0,0.00019178,2]
[365474852,1749695449999,-560.332971,0.00019178,2]
[365474853,1749695450011,-151.0,0.00019178,2]
[365474854,1749695450021,-560.332971,0.00019178,2]
[365474855,1749695450038,-198.84638281,0.00019178,2]
[365474856,1749695450049,-151.0,0.00019178,2]
[365474857,1749695450060,-560.332971,0.00019178,2]
[365474858,1749695450071,-151.0,0.00019178,2]
[365474859,1749695450083,-560.332971,0.00019178,2]
[365474860,1749695450094,-151.0,0.00019178,2]
[365474861,1749695450105,-560.332971,0.00019178,2]
[365474862,1749695450116,-151.0,0.00019178,2]
[365474863,1749695450126,-484.76023571,0.00019178,2]
[365474864,1749695450139,-493.10605614,0.00019178,2]
[365474865,1749695450150,-156.095358,0.00019178,2]
[365474866,1749695450161,-151.0,0.00019178,2]
[365474867,1749695450172,-151.0,0.00019178,2]
[365474868,1749695450183,-490.0,0.00019178,2]
[365474869,1749695450194,-151.0,0.00019178,2]
[365474870,1749695450205,-500.756171,0.00019178,2]
[365474871,1749695450216,-166.461384,0.00019178,2]
[365474872,1749695450227,-505.04049223,0.00019178,2]
[365474873,1749695450238,-500.756171,0.00019178,2]
[365474874,1749695450249,-1478.61,0.00019178,2]
[365474875,1749695450260,-594.93262165,0.00019178,2]
[365474876,1749695450271,-500.756171,0.00019178,2]
[365474877,1749695450282,-150.0,0.00019178,2]
[365474878,1749695450293,-490.0,0.00019178,2]
[365474879,1749695450305,-500.756171,0.00019178,2]
[365474880,1749695450316,-490.0,0.00019178,2]
[365474881,1749695450327,-490.0,0.00019178,2]
[365474882,1749695450338,-502.92480837,0.00019178,2]
[365474883,1749695450350,-500.756171,0.00019178,2]
[365474884,1749695450360,-917.64,0.00019178,2]
[365474885,1749695450371,-500.756171,0.00019178,2]
[365474886,1749695450383,-490.0,0.00019178,2]
[365474887,1749695450395,-500.756171,0.00019178,2]
[365474888,1749695450405,-500.756171,0.00019178,2]
[365474889,1749695450416,-490.0,0.00019178,2]
[365474890,1749695450428,-490.0,0.00019178,2]
[365474891,1749695450439,-490.0,0.00019178,2]
[365474892,1749695450451,-575.46,0.00019178,2]
[365474893,1749695450462,-1206.72,0.00019178,2]
[365474894,1749695450478,-1018.71,0.00019178,2]
[365474895,1749695450490,-656.39,0.00019178,2]
[365474896,1749695450501,-490.0,0.00019178,2]
[365474897,1749695450512,-494.10854942,0.00019178,2]
[365474898,1749695450524,-490.0,0.00019178,2]
[365474899,1749695450535,-979.88,0.00019178,2]
[365474900,1749695450547,-934.67,0.00019178,2]
[365474901,1749695450557,-533.98292412,0.00019178,2]
[365474902,1749695450568,-671.17,0.00019178,2]
[365474903,1749695450580,-490.0,0.00019178,2]
[365474904,1749695450591,-1287.57,0.00019178,2]
[365474905,1749695450603,-430.46298039,0.00019178,2]
[365474906,1749695450615,-458.39333729,0.00019178,2]
[365474907,1749695450626,-153.474882,0.00019178,2]
[365474908,1749695450639,-151.0,0.00019178,2]
[365474909,1749695450651,-151.0,0.00019178,2]
[365474910,1749695450662,-492.91989591,0.00019178,2]
[365474911,1749695450673,-151.446622,0.00019178,2]
[365474912,1749695450684,-462.4995593,0.00019178,2]
[365474913,1749695450695,-490.0,0.00019178,2]
[365474914,1749695450707,-490.0,0.00019178,2]
[365474915,1749695450718,-483.77639401,0.00019178,2]
[365474916,1749695450728,-490.0,0.00019178,2]
[365474917,1749695450740,-480.0,0.00019178,2]
[365474918,1749695450750,-485.09076889,0.00019178,2]
[365474919,1749695450761,-491.71560735,0.00019178,2]
[365474920,1749695450772,-466.26120399,0.00019178,2]
[365474921,1749695450782,-490.0,0.00019178,2]
[365474922,1749695450792,-490.0,0.00019178,2]
[365474923,1749695450803,-490.0,0.00019178,2]
[365474924,1749695450817,-496.7468956,0.00019178,2]
[365474925,1749695450828,-540.0,0.00019178,2]
[365474926,1749695450838,-490.0,0.00019178,2]
[365474927,1749695450849,-499.73880736,0.00019178,2]
[365474928,1749695450859,-420.0,0.00019178,2]
[365474929,1749695450870,-490.0,0.00019178,2]
[365474930,1749695450882,-490.0,0.00019178,2]
[365474931,1749695450895,-490.0,0.00019178,2]
[365474932,1749695451188,-484.10337221,0.00019178,2]
[365474933,1749695451199,-490.0,0.00019178,2]
[365474934,1749695451209,-490.0,0.00019178,2]
[365474935,1749695451219,-551.4,0.00019178,2]
[365474936,1749695451229,-447.04085661,0.00019178,2]
[365474937,1749695451238,-490.0,0.00019178,2]
[365474938,1749695451248,-490.0,0.00019178,2]
[365474939,1749695451258,-692.21,0.00019178,2]
[365474940,1749695451268,-491.02979246,0.00019178,2]
[365474941,1749695451278,-495.38317657,0.00019178,2]
[365474942,1749695451288,-490.0,0.00019178,2]
[365474943,1749695451297,-1213.81,0.00019178,2]
[365474944,1749695451307,-493.42016564,0.00019178,2]
[365474945,1749695451317,-993.62,0.00019178,2]
[365474946,1749695451328,-227.53093035,0.00019178,2]
[365474947,1749695451337,-465.73144203,0.00019178,2]
[365474948,1749695451348,-505.81,0.00019178,2]
[365474949,1749695451358,-503.13841632,0.00019178,2]
[365474950,1749695451368,-503.61015796,0.00019178,2]
[365474951,1749695451377,-490.0,0.00019178,2]
[365474952,1749695451388,-490.0,0.00019178,2]
[365474953,1749695451399,-428.35449516,0.00019178,2]
[365474954,1749695451409,-490.0,0.00019178,2]
[365474955,1749695451419,-495.77183038,0.00019178,2]
[365474956,1749695451429,-490.0,0.00019178,2]
[365474957,1749695451438,-151.0,0.00019178,2]
[365474958,1749695451448,-490.0,0.00019178,2]
[365474959,1749695451458,-1601.65,0.00019178,2]
[365474960,1749695451468,-151.0,0.00019178,2]
[365474961,1749695451478,-500.0,0.00019178,2]
[365474962,1749695451488,-500.0,0.00019178,2]
[365474963,1749695451497,-151.0,0.00019178,2]
[365474964,1749695451507,-500.0,0.00019178,2]
[365474965,1749695451528,-482.83562816,0.00019178,2]
[365474966,1749695451541,-490.0,0.00019178,2]
[365474967,1749695451551,-500.0,0.00019178,2]
[365474968,1749695451561,-151.0,0.00019178,2]
[365474969,1749695451572,-151.0,0.00019178,2]
[365474970,1749695451582,-151.0,0.00019178,2]
[365474971,1749695451592,-221.20497084,0.00019178,2]
[365474972,1749695451602,-490.0,0.00019178,2]
[365474973,1749695451612,-545.27027586,0.00019178,2]
[365474974,1749695451623,-318.69799754,0.00019178,2]
[365474975,1749695451633,-486.75150025,0.00019178,2]
[365474976,1749695451643,-275.716868,0.00019178,2]
[365474977,1749695451653,-151.0,0.00019178,2]
[365474978,1749695451663,-498.37370736,0.00019178,2]
[365474979,1749695451673,-151.0,0.00019178,2]
[365474980,1749695451683,-993.55,0.00019178,2]
[365474981,1749695451693,-275.716868,0.00019178,2]
[365474982,1749695451703,-299.192155,0.00019178,2]
[365474983,1749695451712,-797.99,0.00019178,2]
[365474984,1749695451722,-275.716868,0.00019178,2]
[365474985,1749695451731,-275.716868,0.00019178,2]
[365474986,1749695451741,-463.85292706,0.00019178,2]
[365474987,1749695451751,-802.91,0.00019178,2]
[365474988,1749695451761,-468.47934718,0.00019178,2]
[365474989,1749695451771,-489.60496745,0.00019178,2]
[365474990,1749695451782,-490.0,0.00019178,2]
[365474991,1749695451793,-275.716868,0.00019178,2]
[365474992,1749695451804,-491.1914215,0.00019178,2]
[365474993,1749695451814,-490.0,0.00019178,2]
[365474994,1749695451824,-275.716868,0.00019178,2]
[365474995,1749695451834,-275.716868,0.00019178,2]
[365474996,1749695451845,-275.716868,0.00019178,2]
[365474997,1749695451855,-490.0,0.00019178,2]
[365474998,1749695451865,-490.0,0.00019178,2]
[365474999,1749695451875,-922.7,0.00019178,2]
[365475000,1749695451886,-309.40167746,0.00019178,2]
[365475001,1749695451895,-204.74011807,0.00019178,2]
[365475002,1749695451964,-285.25988193,0.00019178,2]
[365475003,1749695451974,-490.0,0.00019178,2]
[365475004,1749695451985,-490.0,0.00019178,2]
[365475005,1749695451998,-151.0,0.00019178,2]
[365475006,1749695452008,-151.0,0.00019178,2]
[365475007,1749695452018,-151.0,0.00019178,2]
[365475008,1749695452028,-488.15246865,0.00019178,2]
[365475009,1749695452039,-151.0,0.00019178,2]
[365475010,1749695452049,-490.0,0.00019178,2]
[365475011,1749695452059,-402.911985,0.00019178,2]
[365475012,1749695452071,-402.911985,0.00019178,2]
[365475013,1749695452081,-490.0,0.00019178,2]
[365475014,1749695452091,-492.04329507,0.00019178,2]
[365475015,1749695452102,-402.911985,0.00019178,2]
[365475016,1749695452112,-402.911985,0.00019178,2]
[365475017,1749695452123,-151.0,0.00019178,2]
[365475018,1749695452134,-151.0,0.00019178,2]
[365475019,1749695452144,-484.48384732,0.00019178,2]
[365475020,1749695452155,-490.58114067,0.00019178,2]
[365475021,1749695452165,-492.09689192,0.00019178,2]
[365475022,1749695452175,-151.0,0.00019178,2]
[365475023,1749695452186,-151.0,0.00019178,2]
[365475024,1749695452197,-490.0,0.00019178,2]
[365475025,1749695452208,-1430.85,0.00019178,2]
[365475026,1749695452219,-490.0,0.00019178,2]
[365475027,1749695452229,-151.0,0.00019178,2]
[365475028,1749695452239,-402.911985,0.00019178,2]
[365475029,1749695452249,-402.911985,0.00019178,2]
[365475030,1749695452259,-402.911985,0.00019178,2]
[365475031,1749695452270,-580.76,0.00019178,2]
[365475032,1749695452281,-490.0,0.00019178,2]
[365475033,1749695452291,-402.911985,0.00019178,2]
[365475034,1749695452302,-151.0,0.00019178,2]
[365475035,1749695452312,-151.0,0.00019178,2]
[365475036,1749695452323,-482.31748634,0.00019178,2]
[365475037,1749695452333,-1428.34,0.00019178,2]
[365475038,1749695452343,-872.26,0.00019178,2]
[365475039,1749695452354,-151.0,0.00019178,2]
[365475040,1749695452364,-300.370815,0.00019178,2]
[365475041,1749695452376,-490.0,0.00019178,2]
[365475042,1749695452389,-487.11039767,0.00019178,2]
[365475043,1749695452399,-481.20664395,0.00019178,2]
[365475044,1749695452410,-498.04785721,0.00019178,2]
[365475045,1749695452420,-490.0,0.00019178,2]
[365475046,1749695452431,-490.0,0.00019178,2]
[365475047,1749695452442,-490.0,0.00019178,2]
[365475048,1749695452453,-528.12000262,0.00019178,2]
[365475049,1749695452463,-485.33510411,0.00019178,2]
[365475050,1749695452474,-490.0,0.00019178,2]
[365475051,1749695452484,-511.14344898,0.00019178,2]
[365475052,1749695452495,-487.52218824,0.00019178,2]
[365475053,1749695452505,-490.0,0.00019178,2]
[365475054,1749695452516,-490.0,0.00019178,2]
[365475055,1749695452526,-488.76664079,0.00019178,2]
[365475056,1749695452537,-490.0,0.00019178,2]
[365475057,1749695452547,-490.0,0.00019178,2]
[365475058,1749695452558,-429.26949414,0.00019178,2]
[365475059,1749695452568,-490.0,0.00019178,2]
[365475060,1749695452578,-492.00698153,0.00019178,2]
[365475061,1749695452589,-490.0,0.00019178,2]
[365475062,1749695452599,-1345.09,0.00019178,2]
[365475063,1749695452610,-490.0,0.00019178,2]
[365475064,1749695452620,-487.27905517,0.00019178,2]
[365475065,1749695452630,-497.3833925,0.00019178,2]
[365475066,1749695452643,-484.52880063,0.00019178,2]
[365475067,1749695452655,-490.0,0.00019178,2]
[365475068,1749695452666,-490.0,0.00019178,2]
[365475069,1749695452676,-1534.71,0.00019178,2]
[365475070,1749695452686,-481.17683831,0.00019178,2]
[365475071,1749695452697,-625.67,0.00019178,2]
[365475072,1749695452707,-485.72123479,0.00019178,2]
[365475073,1749695452717,-389.11648758,0.00019178,2]
[365475074,1749695452728,-487.78373675,0.00019178,2]
[365475075,1749695452738,-806.88,0.00019178,2]
[365475076,1749695452748,-311.736199,0.00019178,2]
[365475077,1749695452758,-311.736199,0.00019178,2]
[365475078,1749695452768,-490.0,0.00019178,2]
[365475079,1749695452778,-311.736199,0.00019178,2]
[365475080,1749695452787,-311.736199,0.00019178,2]
[365475081,1749695452798,-496.61370459,0.00019178,2]
[365475082,1749695452808,-311.736199,0.00019178,2]
[365475083,1749695452818,-311.736199,0.00019178,2]
[365475084,1749695452829,-490.0,0.00019178,2]
[365475085,1749695452840,-490.0,0.00019178,2]
[365475086,1749695452851,-311.736199,0.00019178,2]
[365475087,1749695452861,-311.736199,0.00019178,2]
[365475088,1749695452870,-482.38135536,0.00019178,2]
[365475089,1749695452881,-488.17433899,0.00019178,2]
[365475090,1749695452896,-311.736199,0.00019178,2]
[365475091,1749695452906,-311.736199,0.00019178,2]
[365475092,1749695452915,-215.524339,0.00019178,2]
[365475093,1749695452925,-311.736199,0.00019178,2]
[365475094,1749695452935,-215.524339,0.00019178,2]
[365475095,1749695452944,-311.736199,0.00019178,2]
[365475096,1749695452954,-215.524339,0.00019178,2]
[365475097,1749695452963,-215.524339,0.00019178,2]
[365475098,1749695452973,-490.0,0.00019178,2]
[365475099,1749695452984,-490.0,0.00019178,2]
[365475100,1749695452995,-215.524339,0.00019178,2]
[365475101,1749695453005,-2484.77,0.00019178,2]
[365475102,1749695453015,-493.33232458,0.00019178,2]
[365475103,1749695453025,-473.70127657,0.00019178,2]
[365475104,1749695453035,-215.524339,0.00019178,2]
[365475105,1749695453046,-215.524339,0.00019178,2]
[365475106,1749695453056,-215.524339,0.00019178,2]
[365475107,1749695453066,-490.0,0.00019178,2]
[365475108,1749695453076,-749.89,0.00019178,2]
[365475109,1749695453087,-484.53218631,0.00019178,2]
[365475110,1749695453097,-485.75601177,0.00019178,2]
[365475111,1749695453107,-493.60017021,0.00019178,2]
[365475112,1749695453116,-1105.39,0.00019178,2]
[365475113,1749695453126,-490.0,0.00019178,2]
[365475114,1749695453137,-427.00171745,0.00019178,2]
[365475115,1749695453147,-424.84143214,0.00019178,2]
[365475116,1749695453158,-465.53877624,0.00019178,2]
[365475117,1749695453168,-490.0,0.00019178,2]
[365475118,1749695453178,-490.0,0.00019178,2]
[365475119,1749695453188,-490.0,0.00019178,2]
[365475120,1749695453199,-764.72,0.00019178,2]
[365475121,1749695453209,-460.0,0.00019178,2]
[365475122,1749695453219,-490.0,0.00019178,2]
[365475123,1749695453228,-488.87246965,0.00019178,2]
[365475124,1749695453239,-1258.08,0.00019178,2]
[365475125,1749695453248,-481.49655141,0.00019178,2]
[365475126,1749695453258,-1227.6,0.00019178,2]
[365475127,1749695453268,-1272.59,0.00019178,2]
[365475128,1749695453277,-199.423411,0.00019178,2]
[365475129,1749695453287,-706.6,0.00019178,2]
[365475130,1749695453297,-490.0,0.00019178,2]
[365475131,1749695453307,-481.1500615,0.00019178,2]
[365475132,1749695453317,-486.01910719,0.00019178,2]
[365475133,1749695453327,-1000.0,0.00019178,2]
[365475134,1749695453337,-492.76978319,0.00019178,2]
[365475135,1749695453347,-490.0,0.00019178,2]
[365475136,1749695453357,-533.24974921,0.00019178,2]
[365475137,1749695453368,-480.0,0.00019178,2]
[365475138,1749695453379,-509.04043259,0.00019178,2]
[365475139,1749695453393,-531.93106735,0.00019178,2]